fUSD/lending_fUSD_20240122
["ID","MTS","AMOUNT","RATE_DAILY","PERIOD"]
[312524675,1705942295720,-610.88,0.0005589,120]
[312524676,1705942295736,-5682.89,0.0005589,120]
[312524677,1705942295752,-917.6,0.0005589,120]
[312524678,1705942295774,-1451.88,0.0005589,120]
[312524679,1705942295790,-774.42,0.0005589,120]
[312524680,1705942295806,-638.56,0.0005589,120]
[312524681,1705942295822,-500.0,0.0005589,120]
[312524682,1705942295837,-2543.46,0.0005589,120]
[312524683,1705942295853,-2607.73,0.0005589,120]
[312524684,1705942295869,-745.28,0.0005589,120]
[312524685,1705942295885,-500.0,0.0005589,120]
[312524686,1705942295902,-820.5,0.0005589,120]
[312524687,1705942295918,-500.0,0.0005589,120]
[312524688,1705942295935,-1200.74,0.0005589,120]
[312524689,1705942295951,-1676.05,0.0005589,120]
[312524690,1705942295968,-3921.91,0.0005589,120]
[312524691,1705942295985,-1841.71,0.0005589,120]
[312524692,1705942296002,-500.0,0.0005589,120]
[312524693,1705942296018,-500.0,0.0005589,120]
[312524694,1705942296034,-1638.92,0.0005589,120]
[312524695,1705942296048,-500.0,0.0005589,120]
[312524696,1705942296064,-753.79,0.0005589,120]
[312524697,1705942296080,-983.65,0.0005589,120]
[312524698,1705942296097,-694.12,0.0005589,120]
[312524699,1705942296114,-760.03,0.0005589,120]
[312524700,1705942296130,-1023.91,0.0005589,120]
[312524701,1705942296148,-500.0,0.0005589,120]
[312524702,1705942296164,-1153.82,0.0005589,120]
[312524703,1705942296181,-895.96,0.0005589,120]
[312524704,1705942296196,-500.0,0.0005589,120]
[312524705,1705942296212,-500.0,0.0005589,120]
[312524706,1705942296226,-500.0,0.0005589,120]
[312524707,1705942296241,-630.13,0.0005589,120]
[312524708,1705942296256,-906.48,0.0005589,120]
[312524709,1705942296271,-500.0,0.0005589,120]
[312524710,1705942296286,-1028.29,0.0005589,120]
[312524711,1705942296302,-500.0,0.0005589,120]
[312524712,1705942296319,-649.02,0.0005589,120]
[312524713,1705942296335,-773.13,0.0005589,120]
[312524714,1705942296351,-500.0,0.0005589,120]
[312524715,1705942296366,-1504.11,0.0005589,120]
[312524716,1705942296382,-500.0,0.0005589,120]
[312524717,1705942296401,-768.01,0.0005589,120]
[312524718,1705942296416,-778.2,0.0005589,120]
[312524719,1705942296432,-1829.78,0.0005589,120]
[312524720,1705942296448,-500.0,0.0005589,120]
[312524721,1705942296464,-543.66,0.0005589,120]
[312524722,1705942296481,-500.0,0.0005589,120]
[312524723,1705942296502,-950.19,0.0005589,120]
[312524724,1705942296519,-500.0,0.0005589,120]
[312524725,1705942296791,-505.05,0.0005589,120]
[312524726,1705942296804,-1074.68,0.0005589,120]
[312524727,1705942296814,-500.0,0.0005589,120]
[312524728,1705942296823,-1213.81,0.0005589,120]
[312524729,1705942296834,-823.2,0.0005589,120]
[312524730,1705942296844,-500.0,0.0005589,120]
[312524731,1705942296854,-1115.17,0.0005589,120]
[312524732,1705942296864,-856.62,0.0005589,120]
[312524733,1705942296873,-500.0,0.0005589,120]
[312524734,1705942296883,-682.86,0.0005589,120]
[312524735,1705942296894,-594.97,0.0005589,120]
[312524736,1705942296903,-500.0,0.0005589,120]
[312524737,1705942296912,-1646.87,0.0005589,120]
[312524738,1705942296922,-822.11,0.0005589,120]
[312524739,1705942296932,-500.0,0.0005589,120]
[312524740,1705942296942,-828.1,0.0005589,120]
[312524741,1705942296951,-580.05,0.0005589,120]
[312524742,1705942296962,-500.0,0.0005589,120]
[312524743,1705942296972,-2595.41,0.0005589,120]
[312524744,1705942296981,-630.62,0.0005589,120]
[312524745,1705942296991,-500.0,0.0005589,120]
[312524746,1705942297000,-930.18,0.0005589,120]
[312524747,1705942297010,-521.48190529,0.0005589,120]
[312524748,1705942297020,-500.0,0.0005589,120]
[312524749,1705942297029,-1073.28,0.0005589,120]
[312524750,1705942297039,-678.49,0.0005589,120]
[312524751,1705942297048,-742.05,0.0005589,120]
[312524752,1705942297058,-500.0,0.0005589,120]
[312524753,1705942297068,-1590.69,0.0005589,120]
[312524754,1705942297077,-829.6,0.0005589,120]
[312524755,1705942297087,-617.27,0.0005589,120]
[312524756,1705942297096,-500.0,0.0005589,120]
[312524757,1705942297105,-500.0,0.0005589,120]
[312524758,1705942297115,-815.78,0.0005589,120]
[312524759,1705942297124,-1543.05,0.0005589,120]
[312524760,1705942297134,-500.0,0.0005589,120]
[312524761,1705942297145,-1475.16,0.0005589,120]
[312524762,1705942297155,-714.16,0.0005589,120]
[312524763,1705942297164,-500.0,0.0005589,120]
[312524764,1705942297174,-1006.24,0.0005589,120]
[312524765,1705942297183,-758.37,0.0005589,120]
[312524766,1705942297193,-257.74344124,0.0005589,120]
[312524767,1705942297203,-1423.08,0.0005589,120]
[312524768,1705942297213,-500.0,0.0005589,120]
[312524769,1705942297222,-765.85,0.0005589,120]
[312524770,1705942297231,-500.0,0.0005589,120]
[312524771,1705942297240,-500.0,0.0005589,120]
[312524772,1705942297249,-569.61,0.0005589,120]
[312524773,1705942297258,-695.94,0.0005589,120]
[312524774,1705942297268,-810.81,0.0005589,120]
[312524775,1705942297278,-500.0,0.0005589,120]
[312524776,1705942297287,-500.0,0.0005589,120]
[312524777,1705942297296,-2137.13,0.0005589,120]
[312524778,1705942297305,-500.0,0.0005589,120]
[312524779,1705942297315,-1195.99,0.0005589,120]
[312524780,1705942297324,-735.82,0.0005589,120]
[312524781,1705942297334,-1168.02,0.0005589,120]
[312524782,1705942297344,-675.18,0.0005589,120]
[312524783,1705942297353,-459.55606285,0.0005589,120]
[312524784,1705942297363,-500.0,0.0005589,120]
[312524785,1705942297373,-723.21,0.0005589,120]
[312524786,1705942297384,-1962.3,0.0005589,120]
[312524787,1705942297394,-4343.32,0.0005589,120]
[312524788,1705942297404,-500.0,0.0005589,120]
[312524789,1705942297414,-646.29,0.0005589,120]
[312524790,1705942297424,-809.05,0.0005589,120]
[312524791,1705942297434,-604.97,0.0005589,120]
[312524792,1705942297443,-1467.22,0.0005589,120]
[312524793,1705942297453,-759.96,0.0005589,120]
[312524794,1705942297463,-600.2,0.0005589,120]
[312524795,1705942297472,-1223.32,0.0005589,120]
[312524796,1705942297482,-500.0,0.0005589,120]
[312524797,1705942297492,-1336.46,0.0005589,120]
[312524798,1705942297503,-776.65,0.0005589,120]
[312524799,1705942297513,-1097.52,0.0005589,120]
[312524800,1705942297523,-500.0,0.0005589,120]
[312524801,1705942297532,-3479.79,0.0005589,120]
[312524802,1705942297542,-941.86,0.0005589,120]
[312524803,1705942297551,-6928.17,0.0005589,5]
[312524804,1705942297561,-500.0,0.0005589,120]
[312524805,1705942297570,-1530.05,0.0005589,120]
[312524806,1705942297580,-630.06,0.0005589,120]
[312524807,1705942297590,-500.0,0.0005589,120]
[312524808,1705942297599,-500.0,0.0005589,120]
[312524809,1705942297609,-500.0,0.0005589,120]
[312524810,1705942297618,-631.92,0.0005589,120]
[312524811,1705942297628,-581.13,0.0005589,120]
[312524812,1705942297637,-968.66,0.0005589,120]
[312524813,1705942297648,-663.93,0.0005589,120]
[312524814,1705942297657,-729.77,0.0005589,120]
[312524815,1705942297666,-548.64,0.0005589,120]
[312524816,1705942297676,-1034.47,0.0005589,120]
[312524817,1705942297686,-500.0,0.0005589,120]
[312524818,1705942297695,-1002.03,0.0005589,120]
[312524819,1705942297705,-659.04,0.0005589,120]
[312524820,1705942297715,-500.0,0.0005589,7]
[312524821,1705942297725,-500.0,0.0005589,120]
[312524822,1705942297735,-669.88,0.0005589,120]
[312524823,1705942297745,-508.5,0.0005589,120]
[312524824,1705942297754,-500.0,0.0005589,120]
[312524825,1705942297764,-1260.2,0.0005589,120]
[312524826,1705942297774,-500.0,0.0005589,120]
[312524827,1705942297784,-1310.32,0.0005589,120]
[312524828,1705942297793,-666.0,0.0005589,120]
[312524829,1705942297803,-1375.16,0.0005589,120]
[312524830,1705942297813,-500.0,0.0005589,120]
[312524831,1705942297822,-777.93,0.0005589,120]
[312524832,1705942297831,-500.0,0.0005589,120]
[312524833,1705942297840,-780.67,0.0005589,120]
[312524834,1705942297850,-500.0,0.0005589,120]
[312524835,1705942297860,-609.64,0.0005589,120]
[312524836,1705942297869,-952.88,0.0005589,120]
[312524837,1705942297878,-500.0,0.0005589,120]
[312524838,1705942297887,-1288.87,0.0005589,120]
[312524839,1705942297897,-614.46,0.0005589,120]
[312524840,1705942297906,-500.0,0.0005589,120]
[312524841,1705942297916,-589.89,0.0005589,120]
[312524842,1705942297925,-500.0,0.0005589,120]
[312524843,1705942297934,-508.24,0.0005589,120]
[312524844,1705942297944,-1173.95,0.0005589,120]
[312524845,1705942297953,-1099.97,0.0005589,120]
[312524846,1705942297962,-891.26,0.0005589,120]
[312524847,1705942297972,-500.0,0.0005589,120]
[312524848,1705942297981,-1741.05,0.0005589,120]
[312524849,1705942297990,-869.66,0.0005589,120]
[312524850,1705942298000,-983.11,0.0005589,120]
[312524851,1705942298009,-588.97,0.0005589,120]
[312524852,1705942298019,-5629.53,0.0005589,120]
[312524853,1705942298028,-822.9,0.0005589,120]
[312524854,1705942298037,-500.0,0.0005589,120]
[312524855,1705942298046,-1258.02,0.0005589,120]
[312524856,1705942298055,-508.55,0.0005589,120]
[312524857,1705942298064,-639.75,0.0005589,120]
[312524858,1705942298073,-822.29,0.0005589,120]
[312524859,1705942298083,-1538.69,0.0005589,120]
[312524860,1705942298092,-870.0,0.0005589,120]
[312524861,1705942298101,-1693.8,0.0005589,120]
[312524862,1705942298110,-963.73,0.0005589,120]
[312524863,1705942298120,-789.83,0.0005589,120]
[312524864,1705942298130,-500.0,0.0005589,120]
[312524865,1705942298139,-500.0,0.0005589,120]
[312524866,1705942298148,-1271.78,0.0005589,120]
[312524867,1705942298157,-628.56,0.0005589,120]
[312524868,1705942298166,-500.0,0.0005589,120]
[312524869,1705942298176,-869.58,0.0005589,120]
[312524870,1705942298185,-870.17,0.0005589,120]
[312524871,1705942298194,-500.0,0.0005589,120]
[312524872,1705942298203,-599.89,0.0005589,120]
[312524873,1705942298213,-766.25,0.0005589,120]
[312524874,1705942298222,-500.0,0.0005589,120]
[312524875,1705942298232,-1159.8,0.0005589,120]
[312524876,1705942298241,-941.19,0.0005589,120]
[312524877,1705942298250,-500.0,0.0005589,120]
[312524878,1705942298259,-500.0,0.0005589,120]
[312524879,1705942298269,-658.14,0.0005589,120]
[312524880,1705942298279,-746.01,0.0005589,120]
[312524881,1705942298288,-2189.22,0.0005589,120]
[312524882,1705942298298,-944.11,0.0005589,120]
[312524883,1705942298307,-1125.33,0.0005589,120]
[312524884,1705942298316,-500.0,0.0005589,120]
[312524885,1705942298325,-898.57,0.0005589,120]
[312524886,1705942298335,-236.20904238,0.0005589,120]
[312524887,1705942298344,-1108.3,0.0005589,120]
[312524888,1705942298354,-561.47,0.0005589,120]
[312524889,1705942298363,-847.08,0.0005589,120]
[312524890,1705942298373,-15010.01,0.0005589,120]
[312524891,1705942298383,-500.0,0.0005589,120]
[312524892,1705942298392,-853.26,0.0005589,120]
[312524893,1705942298401,-557.25,0.0005589,120]
[312524894,1705942298411,-500.0,0.0005589,120]
[312524895,1705942298420,-547.35,0.0005589,120]
[312524896,1705942298430,-4920.11,0.0005589,120]
[312524897,1705942298439,-500.0,0.0005589,120]
[312524898,1705942298448,-500.0,0.0005589,120]
[312524899,1705942298458,-872.89,0.0005589,120]
[312524900,1705942298467,-936.9,0.0005589,120]
[312524901,1705942298477,-500.0,0.0005589,120]
[312524902,1705942298486,-613.62,0.0005589,120]
[312524903,1705942298499,-573.26,0.0005589,120]
[312524904,1705942298509,-500.0,0.0005589,120]
[312524905,1705942298518,-568.85,0.0005589,120]
[312524906,1705942298529,-500.0,0.0005589,120]
[312524907,1705942298539,-2055.2,0.0005589,120]
[312524908,1705942298548,-1090.04,0.0005589,120]
[312524909,1705942298558,-1584.68,0.0005589,120]
[312524910,1705942298567,-1225.33,0.0005589,120]
[312524911,1705942298578,-500.0,0.0005589,120]
[312524912,1705942298588,-812.84,0.0005589,120]
[312524913,1705942298598,-500.0,0.0005589,120]
[312524914,1705942298608,-9707.12,0.0005589,120]
[312524915,1705942298617,-1954.82,0.0005589,120]
[312524916,1705942298627,-990.92,0.0005589,120]
[312524917,1705942298636,-731.34,0.0005589,120]
[312524918,1705942298646,-660.76,0.0005589,120]
[312524919,1705942298656,-500.0,0.0005589,120]
[312524920,1705942298667,-500.0,0.0005589,120]
[312524921,1705942298676,-875.43,0.0005589,120]
[312524922,1705942298686,-903.89,0.0005589,120]
[312524923,1705942298695,-1374.95,0.0005589,120]
[312524924,1705942298704,-500.0,0.0005589,120]
[312524925,1705942298714,-662.41,0.0005589,120]
[312524926,1705942298723,-500.0,0.0005589,120]
[312524927,1705942298733,-500.0,0.0005589,120]
[312524928,1705942298743,-959.86,0.0005589,120]
[312524929,1705942298752,-543.78,0.0005589,120]
[312524930,1705942298762,-500.0,0.0005589,120]
[312524931,1705942298771,-500.0,0.0005589,120]
[312524932,1705942298781,-514.24,0.0005589,10]
[312524933,1705942298790,-500.0,0.0005589,120]
[312524934,1705942298799,-723.5,0.0005589,120]
[312524935,1705942298808,-680.76,0.0005589,120]
[312524936,1705942298818,-767.63,0.0005589,120]
[312524937,1705942298828,-699.54,0.0005589,120]
[312524938,1705942298837,-1748.34,0.0005589,120]
[312524939,1705942298846,-780.8,0.0005589,120]
[312524940,1705942298856,-500.0,0.0005589,120]
[312524941,1705942298865,-526.37,0.0005589,2]
[312524942,1705942298874,-500.0,0.0005589,120]
[312524943,1705942298883,-674.41,0.0005589,120]
[312524944,1705942298893,-795.91,0.0005589,120]
[312524945,1705942298902,-667.0,0.0005589,120]
[312524946,1705942298912,-500.0,0.0005589,120]
[312524947,1705942298921,-1000.0,0.0005589,2]
[312524948,1705942298930,-669.33,0.0005589,120]
[312524949,1705942298939,-568.69,0.0005589,120]
[312524950,1705942298949,-2117.65,0.0005589,120]
[312524951,1705942298958,-607.89,0.0005589,120]
[312524952,1705942298967,-500.0,0.0005589,120]
[312524953,1705942298977,-968.34,0.0005589,120]
[312524954,1705942298987,-554.18,0.0005589,120]
[312524955,1705942298996,-500.0,0.0005589,120]
[312524956,1705942299006,-779.2,0.0005589,120]
[312524957,1705942299017,-917.47,0.0005589,120]
[312524958,1705942299028,-663.62,0.0005589,120]
[312524959,1705942299038,-931.15,0.0005589,120]
[312524960,1705942299048,-500.0,0.0005589,120]
[312524961,1705942299059,-500.0,0.0005589,120]
[312524962,1705942299069,-500.0,0.0005589,120]
[312524963,1705942299080,-500.0,0.0005589,120]
[312524964,1705942299090,-674.69,0.0005589,120]
[312524965,1705942299101,-500.0,0.0005589,120]
[312524966,1705942299111,-7567.95,0.0005589,5]
[312524967,1705942299122,-1147.57,0.0005589,120]
[312524968,1705942299132,-1123.98,0.0005589,120]
[312524969,1705942299146,-984.05,0.0005589,120]
[312524970,1705942299157,-1203.54,0.0005589,120]
[312524971,1705942299168,-353.28344529,0.0005589,120]
[312524972,1705942299179,-1141.4,0.0005589,120]
[312524973,1705942299190,-3747.78,0.0005589,120]
[312524974,1705942299200,-500.0,0.0005589,120]
[312524975,1705942299210,-845.71,0.0005589,120]
[312524976,1705942299221,-500.0,0.0005589,120]
[312524977,1705942299231,-566.43,0.0005589,120]
[312524978,1705942299241,-500.0,0.0005589,120]
[312524979,1705942299251,-700.95,0.0005589,120]
[312524980,1705942299261,-500.0,0.0005589,120]
[312524981,1705942299270,-1493.6,0.0005589,120]
[312524982,1705942299279,-665.32,0.0005589,120]
[312524983,1705942299289,-500.0,0.0005589,120]
[312524984,1705942299298,-2461.03,0.0005589,120]
[312524985,1705942299308,-500.0,0.0005589,2]
[312524986,1705942299318,-902.4,0.0005589,120]
[312524987,1705942299329,-5152.1,0.0005589,120]
[312524988,1705942299339,-1453.38,0.0005589,120]
[312524989,1705942299348,-1243.93,0.0005589,120]
[312524990,1705942299358,-1208.07,0.0005589,120]
[312524991,1705942299368,-300.0,0.000559,35]
[312524992,1705942299378,-200.0,0.000559,20]
[312524993,1705942299388,-150.0,0.000559,26]
[312524994,1705942299399,-150.0,0.000559,35]
[312524995,1705942299409,-1000.0,0.00055904,120]
[312524996,1705942299419,-159.77004051,0.00055913,120]
[312524997,1705942299428,-156.92658809,0.00055919,120]
[312524998,1705942299437,-153.72838231,0.0005592,120]
[312524999,1705942299448,-157.46077969,0.00055936,120]
[312525000,1705942299457,-159.0,0.00055956,120]
[312525001,1705942299467,-83679.9102451,0.00055962,2]
[312525002,1705942299477,-5511.4987297,0.00055962,2]
[312525003,1705942299487,-2824.214905,0.00055962,2]
[312525004,1705942299501,-150.0,0.00055966,14]
[312525005,1705942299512,-150.0,0.00055966,14]
[312525006,1705942299522,-200.0,0.00055987,91]
[312525007,1705942299532,-200.0,0.00055987,81]
[312525008,1705942299542,-100000.0,0.00056,46]
[312525009,1705942299552,-500.21592521,0.00056,10]
[312525010,1705942299562,-35000.0,0.00056,8]
[312525011,1705942299572,-210.0,0.00056,120]
[312525012,1705942299583,-1000000.0,0.00056,120]
[312525013,1705942299593,-3000.0,0.00056,21]
[312525014,1705942299602,-151.0,0.00056,120]
[312525015,1705942299611,-767.3168912,0.00056,34]
[312525016,1705942299621,-151.0,0.00056,120]
[312525017,1705942299631,-181.426524,0.00056,120]
[312525018,1705942299642,-181.426524,0.00056,120]
[312525019,1705942299653,-500.0,0.00056,30]
[312525020,1705942299842,-151.0,0.00056,120]
[312525021,1705942299853,-279.66955,0.00056,120]
[312525022,1705942299863,-279.66955,0.00056,120]
[312525023,1705942299872,-151.0,0.00056,120]
[312525024,1705942299882,-304.4094531,0.00056048,30]
[312525025,1705942299892,-213.80276045,0.00056048,30]
[312525026,1705942299902,-154.61140872,0.00056058,120]
[312525027,1705942299911,-1050.0,0.00056105,60]
[312525028,1705942299920,-1000.0,0.0005612,120]
[312525029,1705942299930,-934.40870215,0.0005615,120]
[312525030,1705942299940,-500.0,0.00056164,30]
[312525031,1705942299949,-500.0,0.00056164,7]
[312525032,1705942299959,-969.16,0.00056164,120]
[312525033,1705942299968,-12581.11,0.00056164,120]
[312525034,1705942299978,-500.0,0.00056164,120]
[312525035,1705942299988,-768.74,0.00056164,120]
[312525036,1705942299997,-500.0,0.00056164,120]
[312525037,1705942300007,-1000.0,0.00056164,120]
[312525038,1705942300017,-761.66,0.00056164,120]
[312525039,1705942300026,-500.0,0.00056164,120]
[312525040,1705942300035,-579.81,0.00056164,120]
[312525041,1705942300044,-500.0,0.00056164,120]
[312525042,1705942300054,-500.0,0.00056164,120]
[312525043,1705942300063,-500.0,0.00056164,120]
[312525044,1705942300072,-500.0,0.00056164,120]
[312525045,1705942300082,-500.0,0.00056164,120]
[312525046,1705942300091,-500.0,0.00056164,120]
[312525047,1705942300100,-500.0,0.00056164,120]
[312525048,1705942300110,-665.43,0.00056164,120]
[312525049,1705942300119,-719.77,0.00056164,120]
[312525050,1705942300129,-500.0,0.00056164,120]
[312525051,1705942300140,-807.38,0.00056164,120]
[312525052,1705942300150,-501.06,0.00056164,120]
[312525053,1705942300159,-500.0,0.00056164,120]
[312525054,1705942300168,-500.0,0.00056164,120]
[312525055,1705942300178,-500.0,0.00056164,120]
[312525056,1705942300187,-500.0,0.00056164,120]
[312525057,1705942300197,-614.6,0.00056164,120]
[312525058,1705942300207,-500.0,0.00056164,120]
[312525059,1705942300216,-500.0,0.00056164,120]
[312525060,1705942300225,-673.42,0.00056164,120]
[312525061,1705942300234,-575.84,0.00056164,120]
[312525062,1705942300243,-500.0,0.00056164,120]
[312525063,1705942300253,-616.04,0.00056164,120]
[312525064,1705942300262,-500.0,0.00056164,120]
[312525065,1705942300272,-810.82,0.00056164,120]
[312525066,1705942300281,-500.0,0.00056164,120]
[312525067,1705942300290,-659.18,0.00056164,2]
[312525068,1705942300299,-568.29,0.00056164,120]
[312525069,1705942300309,-519.50533441,0.00056164,120]
[312525070,1705942300318,-500.0,0.00056164,120]
[312525071,1705942300328,-500.0,0.00056164,120]
[312525072,1705942300337,-500.0,0.00056164,120]
[312525073,1705942300347,-500.0,0.00056164,120]
[312525074,1705942300356,-543.82,0.00056164,120]
[312525075,1705942300365,-589.84,0.00056164,120]
[312525076,1705942300375,-500.0,0.00056164,2]
[312525077,1705942300384,-500.0,0.00056164,120]
[312525078,1705942300395,-527.04797348,0.00056164,120]
[312525079,1705942300404,-500.0,0.00056164,120]
[312525080,1705942300414,-500.0,0.00056164,120]
[312525081,1705942300423,-618.43,0.00056164,120]
[312525082,1705942300433,-500.0,0.00056164,120]
[312525083,1705942300443,-500.0,0.00056164,120]
[312525084,1705942300452,-500.0,0.00056164,120]
[312525085,1705942300462,-500.0,0.00056164,120]
[312525086,1705942300471,-503.21,0.00056164,120]
[312525087,1705942300485,-500.0,0.00056164,120]
[312525088,1705942300495,-508.3341606,0.00056164,7]
[312525089,1705942300504,-500.0,0.00056164,120]
[312525090,1705942300514,-500.0,0.00056164,120]
[312525091,1705942300525,-548.09,0.00056164,120]
[312525092,1705942300534,-500.0,0.00056164,120]
[312525093,1705942300544,-500.0,0.00056164,120]
[312525094,1705942300554,-500.0,0.00056164,120]
[312525095,1705942300564,-543.56838596,0.00056164,120]
[312525096,1705942300575,-500.0,0.00056164,120]
[312525097,1705942300585,-500.0,0.00056164,120]
[312525098,1705942300595,-500.0,0.00056164,120]
[312525099,1705942300604,-635.0,0.00056164,120]
[312525100,1705942300614,-381.74161706,0.00056164,120]
[312525101,1705942300623,-500.0,0.00056164,120]
[312525102,1705942300632,-826.62,0.00056164,120]
[312525103,1705942300645,-500.0,0.00056164,120]
[312525104,1705942300656,-593.99,0.00056164,120]
[312525105,1705942300666,-500.0,0.00056164,120]
[312525106,1705942300676,-500.0,0.00056164,120]
[312525107,1705942300686,-500.0,0.00056164,120]
[312525108,1705942300697,-503.77,0.00056164,120]
[312525109,1705942300708,-500.0,0.00056164,120]
[312525110,1705942300718,-584.08,0.00056164,120]
[312525111,1705942300728,-500.0,0.00056164,120]
[312525112,1705942300739,-1733.58,0.00056164,120]
[312525113,1705942300749,-500.0,0.00056164,120]
[312525114,1705942300759,-500.0,0.00056164,120]
[312525115,1705942300769,-500.0,0.00056164,120]
[312525116,1705942300779,-500.0,0.00056164,120]
[312525117,1705942300790,-500.0,0.00056164,120]
[312525118,1705942300799,-538.86,0.00056164,120]
[312525119,1705942300809,-500.0,0.00056164,120]
[312525120,1705942300818,-500.0,0.00056164,120]
[312525121,1705942300829,-517.5,0.00056164,120]
[312525122,1705942300838,-500.0,0.00056164,120]
[312525123,1705942300848,-873.69,0.00056164,120]
[312525124,1705942300858,-500.0,0.00056164,120]
[312525125,1705942300867,-557.04,0.00056164,120]
[312525126,1705942300876,-500.0,0.00056164,120]
[312525127,1705942300886,-500.0,0.00056164,120]
[312525128,1705942300896,-500.0,0.00056164,120]
[312525129,1705942300905,-500.0,0.00056164,120]
[312525130,1705942300916,-500.0,0.00056164,120]
[312525131,1705942300926,-500.0,0.00056164,120]
[312525132,1705942300935,-500.0,0.00056164,120]
[312525133,1705942300946,-500.0,0.00056164,120]
[312525134,1705942300956,-500.0,0.00056164,120]
[312525135,1705942300965,-727.32,0.00056164,120]
[312525136,1705942300974,-500.0,0.00056164,120]
[312525137,1705942300984,-500.0,0.00056164,120]
[312525138,1705942300993,-500.0,0.00056164,120]
[312525139,1705942301002,-791.21,0.00056164,120]
[312525140,1705942301012,-500.0,0.00056164,120]
[312525141,1705942301022,-903.36,0.00056164,120]
[312525142,1705942301032,-1283.28,0.00056164,120]
[312525143,1705942301042,-500.0,0.00056164,120]
[312525144,1705942301051,-594.65,0.00056164,120]
[312525145,1705942301060,-617.64,0.00056164,120]
[312525146,1705942301070,-720.46,0.00056164,120]
[312525147,1705942301080,-986.04,0.00056164,120]
[312525148,1705942301090,-723.96,0.00056164,120]
[312525149,1705942301099,-985.43,0.00056164,120]
[312525150,1705942301109,-519.85,0.00056164,120]
[312525151,1705942301118,-500.0,0.00056164,120]
[312525152,1705942301127,-500.0,0.00056164,120]
[312525153,1705942301136,-500.0,0.00056164,120]
[312525154,1705942301147,-1096.6,0.00056164,120]
[312525155,1705942301157,-500.0,0.00056164,120]
[312525156,1705942301166,-1001.01,0.00056164,120]
[312525157,1705942301177,-500.0,0.00056164,120]
[312525158,1705942301187,-500.0,0.00056164,120]
[312525159,1705942301197,-500.0,0.00056164,120]
[312525160,1705942301206,-500.0,0.00056164,120]
[312525161,1705942301216,-500.0,0.00056164,2]
[312525162,1705942301225,-500.0,0.00056164,120]
[312525163,1705942301235,-748.21,0.00056164,120]
[312525164,1705942301245,-601.52,0.00056164,120]
[312525165,1705942301254,-757.21,0.00056164,120]
[312525166,1705942301263,-500.0,0.00056164,120]
[312525167,1705942301272,-500.0,0.00056164,2]
[312525168,1705942301282,-578.69,0.00056164,120]
[312525169,1705942301292,-500.0,0.00056164,120]
[312525170,1705942301301,-500.0,0.00056164,120]
[312525171,1705942301311,-690.74,0.00056164,120]
[312525172,1705942301320,-655.68,0.00056164,120]
[312525173,1705942301329,-646.43079885,0.00056164,120]
[312525174,1705942301339,-815.64,0.00056164,120]